[Event "Titled Tuesday Blitz January 17 Early 2023"]
[White "Trent, Lawrence"]
[Black "Krzyzanowski, Marcin"]
[WhiteFideId "408638"]
[BlackFideId "1132199"]
[WhiteElo "2403"]
[BlackElo "2512"]
[Result "1-0"]
[Round "03"]
[TimeControl "180+2"]
[Date "2023.01.17"]
[WhiteClock "0:00:11"]
[BlackClock "0:00:02"]

1. e4 {[%clk 0:03:00]}  c5 {[%clk 0:02:58]} 2. Nc3 {[%clk 0:02:57]}  d6 {[%clk 0:02:58]} 3. d4 {[%clk 0:02:55]}  cxd4 {[%clk 0:02:59]} 4. Qxd4 {[%clk 0:02:55]}  Nc6 {[%clk 0:03:00]} 5. Bb5 {[%clk 0:02:56]}  Bd7 {[%clk 0:02:59]} 6. Bxc6 {[%clk 0:02:56]}  Bxc6 {[%clk 0:02:59]} 7. Nf3 {[%clk 0:02:56]}  e5 {[%clk 0:02:54]} 8. Qd3 {[%clk 0:02:55]}  Rc8 {[%clk 0:02:49]} 9. O-O {[%clk 0:02:55]}  Nf6 {[%clk 0:02:46]} 10. Bg5 {[%clk 0:02:55]}  Be7 {[%clk 0:02:47]} 11. Bxf6 {[%clk 0:02:55]}  Bxf6 {[%clk 0:02:47]} 12. Rfd1 {[%clk 0:02:55]}  Be7 {[%clk 0:02:47]} 13. Nd5 {[%clk 0:02:55]}  O-O {[%clk 0:02:46]} 14. c4 {[%clk 0:02:46]}  a6 {[%clk 0:02:24]} 15. a4 {[%clk 0:02:43]}  Bxd5 {[%clk 0:02:23]} 16. Qxd5 {[%clk 0:02:41]}  Qb6 {[%clk 0:02:23]} 17. Rd2 {[%clk 0:02:25]}  Qb4 {[%clk 0:02:23]} 18. Rc2 {[%clk 0:02:20]}  Bd8 {[%clk 0:02:12]} 19. Ne1 {[%clk 0:01:58]}  Bb6 {[%clk 0:01:43]} 20. Nd3 {[%clk 0:01:53]}  Qa5 {[%clk 0:01:39]} 21. Qxa5 {[%clk 0:01:44]}  Bxa5 {[%clk 0:01:40]} 22. b3 {[%clk 0:01:40]}  f5 {[%clk 0:01:38]} 23. exf5 {[%clk 0:01:26]}  Rxf5 {[%clk 0:01:39]} 24. Rd1 {[%clk 0:01:25]}  Bb6 {[%clk 0:01:36]} 25. Nb4 {[%clk 0:01:20]}  Rcf8 {[%clk 0:01:29]} 26. Rf1 {[%clk 0:01:20]}  Bd4 {[%clk 0:01:23]} 27. Nd5 {[%clk 0:01:19]}  R8f7 {[%clk 0:01:21]} 28. Re2 {[%clk 0:01:15]}  g5 {[%clk 0:01:17]} 29. Ne3 {[%clk 0:01:03]}  R5f6 {[%clk 0:01:10]} 30. Ng4 {[%clk 0:00:54]}  Re6 {[%clk 0:01:08]} 31. Rd1 {[%clk 0:00:51]}  Rf4 {[%clk 0:00:57]} 32. h3 {[%clk 0:00:42]}  h5 {[%clk 0:00:56]} 33. g3 {[%clk 0:00:31]}  hxg4 {[%clk 0:00:19]} 34. gxf4 {[%clk 0:00:29]}  Rh6 {[%clk 0:00:14]} 35. fxe5 {[%clk 0:00:24]}  dxe5 {[%clk 0:00:12]} 36. hxg4 {[%clk 0:00:23]}  Rh3 {[%clk 0:00:12]} 37. Rb1 {[%clk 0:00:12]}  Rg3+ {[%clk 0:00:11]} 38. Kf1 {[%clk 0:00:13]}  Rxg4 {[%clk 0:00:11]} 39. b4 {[%clk 0:00:14]}  Kf7 {[%clk 0:00:10]} 40. c5 {[%clk 0:00:14]}  Ke6 {[%clk 0:00:10]} 41. Rc2 {[%clk 0:00:14]}  Kd5 {[%clk 0:00:10]} 42. b5 {[%clk 0:00:13]}  Bxc5 {[%clk 0:00:05]} 43. bxa6 {[%clk 0:00:14]}  bxa6 {[%clk 0:00:06]} 44. Rd1+ {[%clk 0:00:11]}  Bd4 {[%clk 0:00:06]} 45. Rb1 {[%clk 0:00:10]}  Rf4 {[%clk 0:00:05]} 46. Rb7 {[%clk 0:00:07]}  g4 {[%clk 0:00:05]} 47. Kg2 {[%clk 0:00:07]}  Rf3 {[%clk 0:00:06]} 48. Rd7+ {[%clk 0:00:07]}  Ke4 {[%clk 0:00:05]} 49. Re2+ {[%clk 0:00:06]}  Kd3 {[%clk 0:00:05]} 50. Rxe5 {[%clk 0:00:06]}  Rxf2+ {[%clk 0:00:05]} 51. Kg3 {[%clk 0:00:07]}  Rf1 {[%clk 0:00:04]} 52. Red5 {[%clk 0:00:07]}  Rg1+ {[%clk 0:00:04]} 53. Kh2 {[%clk 0:00:08]}  g3+ {[%clk 0:00:04]} 54. Kh3 {[%clk 0:00:08]}  Ke2 {[%clk 0:00:02]} 55. Rxd4 {[%clk 0:00:08]}  Ra1 {[%clk 0:00:03]} 56. Rd2+ {[%clk 0:00:08]}  Kf3 {[%clk 0:00:02]} 57. R7d3+ {[%clk 0:00:08]}  Ke4 {[%clk 0:00:02]} 58. Rxg3 {[%clk 0:00:08]}  Kf5 {[%clk 0:00:02]} 59. Rf2+ {[%clk 0:00:07]}  Ke4 {[%clk 0:00:01]} 60. Rg4+ {[%clk 0:00:08]}  Ke3 {[%clk 0:00:02]} 61. Rf6 {[%clk 0:00:08]}  Rh1+ {[%clk 0:00:02]} 62. Kg3 {[%clk 0:00:08]}  Rh5 {[%clk 0:00:03]} 63. Re6+ {[%clk 0:00:07]}  Kd3 {[%clk 0:00:04]} 64. Rxa6 {[%clk 0:00:08]}  Kc3 {[%clk 0:00:03]} 65. Rc6+ {[%clk 0:00:09]}  Kb3 {[%clk 0:00:03]} 66. a5 {[%clk 0:00:08]}  Rxa5 {[%clk 0:00:04]} 67. Rf4 {[%clk 0:00:08]}  Rd5 {[%clk 0:00:04]} 68. Rf3+ {[%clk 0:00:09]}  Kb4 {[%clk 0:00:05]} 69. Rcf6 {[%clk 0:00:09]}  Rg5+ {[%clk 0:00:06]} 70. Kf2 {[%clk 0:00:09]}  Rg8 {[%clk 0:00:05]} 71. R6f4+ {[%clk 0:00:09]}  Kc5 {[%clk 0:00:06]} 72. Re3 {[%clk 0:00:10]}  Kd5 {[%clk 0:00:06]} 73. Kf3 {[%clk 0:00:09]}  Rh8 {[%clk 0:00:06]} 74. Rd3+ {[%clk 0:00:09]}  Ke5 {[%clk 0:00:06]} 75. Re4+ {[%clk 0:00:10]}  Kf6 {[%clk 0:00:07]} 76. Rd6+ {[%clk 0:00:10]}  Kf5 {[%clk 0:00:07]} 77. Rd5+ {[%clk 0:00:10]}  Kf6 {[%clk 0:00:07]} 78. Ke3 {[%clk 0:00:10]}  Rh1 {[%clk 0:00:06]} 79. Rde5 {[%clk 0:00:09]}  Re1+ {[%clk 0:00:06]} 80. Kd4 {[%clk 0:00:10]}  Rd1+ {[%clk 0:00:06]} 81. Kc4 {[%clk 0:00:10]}  Rc1+ {[%clk 0:00:05]} 82. Kd3 {[%clk 0:00:11]}  Rd1+ {[%clk 0:00:05]} 83. Ke2 {[%clk 0:00:11]}  Ra1 {[%clk 0:00:05]} 84. Rb5 {[%clk 0:00:11]}  Rh1 {[%clk 0:00:04]} 85. Ra4 {[%clk 0:00:11]}  Rh2+ {[%clk 0:00:02]} 86. Kf1 {[%clk 0:00:11]}  Ke7 {[%clk 0:00:02]} 87. Ra6 {[%clk 0:00:11]}  Kd7 {[%clk 0:00:02]} 88. Rb7+ {[%clk 0:00:11]}  Kc8 {[%clk 0:00:02]} 89. Rg7 {[%clk 0:00:11]}  Rh8 {[%clk 0:00:02]} 90. Ra8# {[%clk 0:00:11]} 1-0


[Site "https://www.chess.com"]

[Event "Titled Tuesday Blitz January 17 Early 2023"]
[White "Seo, Jung Min"]
[Black "Bethke, Richard"]
[WhiteFideId "1734687"]
[BlackFideId "12959243"]
[WhiteElo "2494"]
[BlackElo "2382"]
[Result "1-0"]
[Round "03"]
[TimeControl "180+2"]
[Date "2023.01.17"]
[WhiteClock "0:01:37"]
[BlackClock "0:00:01"]

1. e4 {[%clk 0:02:59]}  c6 {[%clk 0:02:46]} 2. d4 {[%clk 0:02:59]}  d5 {[%clk 0:02:47]} 3. e5 {[%clk 0:02:57]}  Bf5 {[%clk 0:02:45]} 4. Nf3 {[%clk 0:02:57]}  e6 {[%clk 0:02:42]} 5. Be2 {[%clk 0:02:55]}  Nd7 {[%clk 0:02:41]} 6. O-O {[%clk 0:02:53]}  h5 {[%clk 0:02:35]} 7. c4 {[%clk 0:02:48]}  Nh6 {[%clk 0:02:24]} 8. Nc3 {[%clk 0:02:48]}  dxc4 {[%clk 0:02:12]} 9. Bxc4 {[%clk 0:02:47]}  Nb6 {[%clk 0:02:12]} 10. Be2 {[%clk 0:02:47]}  Be7 {[%clk 0:02:06]} 11. Ne1 {[%clk 0:02:41]}  h4 {[%clk 0:01:59]} 12. h3 {[%clk 0:02:41]}  Qd7 {[%clk 0:01:50]} 13. Be3 {[%clk 0:02:37]}  Nd5 {[%clk 0:01:47]} 14. Nxd5 {[%clk 0:02:36]}  exd5 {[%clk 0:01:47]} 15. Qd2 {[%clk 0:02:34]}  a5 {[%clk 0:01:22]} 16. Nd3 {[%clk 0:02:32]}  Be4 {[%clk 0:01:00]} 17. Rac1 {[%clk 0:02:18]}  Nf5 {[%clk 0:00:58]} 18. Bg4 {[%clk 0:02:16]}  Qc7 {[%clk 0:00:54]} 19. f3 {[%clk 0:02:09]}  Nxe3 {[%clk 0:00:51]} 20. Qxe3 {[%clk 0:02:10]}  Bg6 {[%clk 0:00:47]} 21. f4 {[%clk 0:02:07]}  Bh5 {[%clk 0:00:26]} 22. Qf3 {[%clk 0:02:00]}  Bxg4 {[%clk 0:00:24]} 23. Qxg4 {[%clk 0:02:00]}  Kf8 {[%clk 0:00:18]} 24. f5 {[%clk 0:02:00]}  Rh6 {[%clk 0:00:11]} 25. e6 {[%clk 0:01:52]}  f6 {[%clk 0:00:10]} 26. Nf4 {[%clk 0:01:50]}  Bd6 {[%clk 0:00:07]} 27. Ng6+ {[%clk 0:01:50]}  Kg8 {[%clk 0:00:07]} 28. Nxh4 {[%clk 0:01:48]}  Qb6 {[%clk 0:00:05]} 29. Rc2 {[%clk 0:01:41]}  Be5 {[%clk 0:00:04]} 30. Nf3 {[%clk 0:01:40]}  Re8 {[%clk 0:00:01]} 31. Nxe5 {[%clk 0:01:37]}  fxe5 {[%clk 0:00:01]} 32. f6 {[%clk 0:01:37]} 1-0


[Site "https://www.chess.com"]

[Event "Titled Tuesday Blitz January 17 Early 2023"]
[White "ArchibaldCerveza29"]
[Black "Samunenkov, Ihor"]
[BlackFideId "14187086"]
[WhiteElo "2547"]
[BlackElo "2501"]
[Result "0-1"]
[Round "03"]
[TimeControl "180+2"]
[Date "2023.01.17"]
[WhiteClock "0:00:07"]
[BlackClock "0:00:19"]

1. d4 {[%clk 0:02:54]}  d5 {[%clk 0:02:59]} 2. c4 {[%clk 0:02:54]}  e6 {[%clk 0:02:59]} 3. Nc3 {[%clk 0:02:53]}  a6 {[%clk 0:03:00]} 4. cxd5 {[%clk 0:02:53]}  exd5 {[%clk 0:03:01]} 5. Qb3 {[%clk 0:02:53]}  c5 {[%clk 0:02:59]} 6. Qxd5 {[%clk 0:02:48]}  cxd4 {[%clk 0:02:59]} 7. Qxd8+ {[%clk 0:02:11]}  Kxd8 {[%clk 0:02:59]} 8. Ne4 {[%clk 0:02:11]}  Bf5 {[%clk 0:02:40]} 9. Ng3 {[%clk 0:02:09]}  Bg6 {[%clk 0:02:40]} 10. Nf3 {[%clk 0:02:08]}  Nc6 {[%clk 0:02:40]} 11. Bg5+ {[%clk 0:02:03]}  Nf6 {[%clk 0:02:26]} 12. h4 {[%clk 0:02:00]}  h5 {[%clk 0:01:59]} 13. a3 {[%clk 0:01:30]}  Bc5 {[%clk 0:01:53]} 14. b4 {[%clk 0:01:27]}  Ba7 {[%clk 0:01:50]} 15. Rd1 {[%clk 0:01:22]}  Re8 {[%clk 0:01:47]} 16. e4 {[%clk 0:01:02]}  Kc7 {[%clk 0:01:21]} 17. Bf4+ {[%clk 0:00:52]}  Kc8 {[%clk 0:01:20]} 18. Bd3 {[%clk 0:00:43]}  Nxe4 {[%clk 0:01:13]} 19. O-O {[%clk 0:00:43]}  Kd7 {[%clk 0:00:43]} 20. b5 {[%clk 0:00:27]}  axb5 {[%clk 0:00:40]} 21. Bxb5 {[%clk 0:00:28]}  Nc3 {[%clk 0:00:38]} 22. Ne5+ {[%clk 0:00:19]}  Rxe5 {[%clk 0:00:34]} 23. Bxc6+ {[%clk 0:00:19]}  bxc6 {[%clk 0:00:33]} 24. Bxe5 {[%clk 0:00:20]}  Nxd1 {[%clk 0:00:33]} 25. Rxd1 {[%clk 0:00:21]}  c5 {[%clk 0:00:29]} 26. Bxg7 {[%clk 0:00:22]}  Bb6 {[%clk 0:00:29]} 27. f4 {[%clk 0:00:21]}  Rxa3 {[%clk 0:00:28]} 28. f5 {[%clk 0:00:21]}  Rxg3 {[%clk 0:00:27]} 29. fxg6 {[%clk 0:00:22]}  Rxg6 {[%clk 0:00:27]} 30. Be5 {[%clk 0:00:22]}  Ke6 {[%clk 0:00:27]} 31. Bf4 {[%clk 0:00:20]}  c4 {[%clk 0:00:27]} 32. Kf2 {[%clk 0:00:19]}  Kd5 {[%clk 0:00:25]} 33. Kf3 {[%clk 0:00:19]}  c3 {[%clk 0:00:22]} 34. Rb1 {[%clk 0:00:19]}  Kc4 {[%clk 0:00:22]} 35. Ke4 {[%clk 0:00:17]}  Re6+ {[%clk 0:00:21]} 36. Kf5 {[%clk 0:00:17]}  d3 {[%clk 0:00:22]} 37. g4 {[%clk 0:00:14]}  hxg4 {[%clk 0:00:20]} 38. h5 {[%clk 0:00:15]}  d2 {[%clk 0:00:19]} 39. h6 {[%clk 0:00:15]}  c2 {[%clk 0:00:19]} 40. Ra1 {[%clk 0:00:06]}  d1=Q {[%clk 0:00:19]} 41. h7 {[%clk 0:00:06]}  Qd3+ {[%clk 0:00:19]} 42. Kxg4 {[%clk 0:00:07]}  Qxh7 {[%clk 0:00:19]} 0-1


[Site "https://www.chess.com"]

[Event "Titled Tuesday Blitz January 17 Early 2023"]
[White "Benmesbah, Natacha"]
[Black "Dubov, Daniil"]
[WhiteFideId "642002"]
[BlackFideId "24126055"]
[WhiteElo "2261"]
[BlackElo "2708"]
[Result "0-1"]
[Round "03"]
[TimeControl "180+2"]
[Date "2023.01.17"]
[WhiteClock "0:01:32"]
[BlackClock "0:01:50"]

1. e4 {[%clk 0:03:00]}  c5 {[%clk 0:02:59]} 2. Nf3 {[%clk 0:02:59]}  e6 {[%clk 0:02:59]} 3. Qe2 {[%clk 0:02:57]}  Nc6 {[%clk 0:02:51]} 4. g3 {[%clk 0:02:55]}  g5 {[%clk 0:02:43]} 5. c3 {[%clk 0:02:33]}  g4 {[%clk 0:02:35]} 6. Ng1 {[%clk 0:02:33]}  d5 {[%clk 0:02:22]} 7. Bg2 {[%clk 0:02:29]}  d4 {[%clk 0:02:17]} 8. e5 {[%clk 0:02:08]}  Nge7 {[%clk 0:02:07]} 9. d3 {[%clk 0:01:59]}  Ng6 {[%clk 0:02:05]} 10. Bxc6+ {[%clk 0:01:57]}  bxc6 {[%clk 0:02:03]} 11. Qxg4 {[%clk 0:01:57]}  Nxe5 {[%clk 0:01:57]} 12. Qe4 {[%clk 0:01:56]}  Qd5 {[%clk 0:01:56]} 13. f4 {[%clk 0:01:34]}  Nxd3+ {[%clk 0:01:49]} 14. Qxd3 {[%clk 0:01:32]}  Qxh1 {[%clk 0:01:50]} 0-1


[Site "https://www.chess.com"]

[Event "Titled Tuesday Blitz January 17 Early 2023"]
[White "Remizov, Yaroslav"]
[Black "Tologon tegin, Semetei"]
[WhiteFideId "34134015"]
[BlackFideId "13800574"]
[WhiteElo "2421"]
[BlackElo "2372"]
[Result "1-0"]
[Round "03"]
[TimeControl "180+2"]
[Date "2023.01.17"]
[WhiteClock "0:00:12"]
[BlackClock "0:00:03"]

1. e4 {[%clk 0:02:59]}  e5 {[%clk 0:02:59]} 2. Nf3 {[%clk 0:02:59]}  Nc6 {[%clk 0:02:59]} 3. Nc3 {[%clk 0:03:00]}  Nf6 {[%clk 0:02:56]} 4. Be2 {[%clk 0:03:00]}  Bb4 {[%clk 0:02:55]} 5. Nd5 {[%clk 0:03:00]}  Bc5 {[%clk 0:02:54]} 6. d3 {[%clk 0:03:00]}  h6 {[%clk 0:02:52]} 7. c3 {[%clk 0:03:00]}  d6 {[%clk 0:02:52]} 8. b4 {[%clk 0:03:00]}  Bb6 {[%clk 0:02:51]} 9. a4 {[%clk 0:03:01]}  a5 {[%clk 0:02:44]} 10. Nxb6 {[%clk 0:03:00]}  cxb6 {[%clk 0:02:45]} 11. b5 {[%clk 0:03:01]}  Ne7 {[%clk 0:02:44]} 12. c4 {[%clk 0:03:01]}  O-O {[%clk 0:02:41]} 13. O-O {[%clk 0:02:58]}  Ng6 {[%clk 0:02:37]} 14. Re1 {[%clk 0:02:45]}  Be6 {[%clk 0:02:29]} 15. g3 {[%clk 0:02:18]}  Rc8 {[%clk 0:02:27]} 16. Bf1 {[%clk 0:02:08]}  Re8 {[%clk 0:02:01]} 17. Ba3 {[%clk 0:02:04]}  Bg4 {[%clk 0:01:52]} 18. h3 {[%clk 0:02:01]}  Bxf3 {[%clk 0:01:52]} 19. Qxf3 {[%clk 0:02:02]}  Nf8 {[%clk 0:01:52]} 20. Bb2 {[%clk 0:01:50]}  Ne6 {[%clk 0:01:49]} 21. h4 {[%clk 0:01:50]}  Nd7 {[%clk 0:01:47]} 22. Bh3 {[%clk 0:01:48]}  Ndc5 {[%clk 0:01:46]} 23. Kg2 {[%clk 0:01:47]}  Rc7 {[%clk 0:01:42]} 24. Qe3 {[%clk 0:01:42]}  Nb3 {[%clk 0:01:41]} 25. Rad1 {[%clk 0:01:41]}  Ned4 {[%clk 0:01:25]} 26. Rh1 {[%clk 0:01:30]}  Rce7 {[%clk 0:01:20]} 27. f4 {[%clk 0:01:27]}  Qc7 {[%clk 0:00:51]} 28. f5 {[%clk 0:01:06]}  f6 {[%clk 0:00:51]} 29. g4 {[%clk 0:01:04]}  Qc5 {[%clk 0:00:31]} 30. g5 {[%clk 0:00:49]}  hxg5 {[%clk 0:00:21]} 31. hxg5 {[%clk 0:00:48]}  fxg5 {[%clk 0:00:21]} 32. Bg4 {[%clk 0:00:38]}  Nc2 {[%clk 0:00:19]} 33. Qxg5 {[%clk 0:00:28]}  Ne3+ {[%clk 0:00:10]} 34. Kg3 {[%clk 0:00:29]}  Nxg4 {[%clk 0:00:09]} 35. Qxg4 {[%clk 0:00:19]}  Qe3+ {[%clk 0:00:09]} 36. Kg2 {[%clk 0:00:20]}  Rf7 {[%clk 0:00:07]} 37. Rh3 {[%clk 0:00:19]}  Qf4 {[%clk 0:00:07]} 38. Qxf4 {[%clk 0:00:19]}  exf4 {[%clk 0:00:08]} 39. Rdh1 {[%clk 0:00:19]}  Kf8 {[%clk 0:00:08]} 40. Kf3 {[%clk 0:00:18]}  Nc5 {[%clk 0:00:07]} 41. Kxf4 {[%clk 0:00:18]}  Nxa4 {[%clk 0:00:06]} 42. Ba3 {[%clk 0:00:14]}  Nc5 {[%clk 0:00:06]} 43. Rh8+ {[%clk 0:00:13]}  Ke7 {[%clk 0:00:06]} 44. d4 {[%clk 0:00:13]}  Nd3+ {[%clk 0:00:05]} 45. Ke3 {[%clk 0:00:13]}  Rxh8 {[%clk 0:00:06]} 46. Rxh8 {[%clk 0:00:13]}  Nb4 {[%clk 0:00:06]} 47. Rb8 {[%clk 0:00:13]}  Kf6 {[%clk 0:00:06]} 48. Kf4 {[%clk 0:00:11]}  Rc7 {[%clk 0:00:05]} 49. e5+ {[%clk 0:00:11]}  dxe5+ {[%clk 0:00:06]} 50. dxe5+ {[%clk 0:00:12]}  Kf7 {[%clk 0:00:07]} 51. Kg5 {[%clk 0:00:12]}  Rxc4 {[%clk 0:00:06]} 52. Rxb7+ {[%clk 0:00:12]}  Kg8 {[%clk 0:00:07]} 53. e6 {[%clk 0:00:12]}  Nd5 {[%clk 0:00:06]} 54. Rb8+ {[%clk 0:00:11]}  Kh7 {[%clk 0:00:06]} 55. Bb2 {[%clk 0:00:09]}  Ne3 {[%clk 0:00:06]} 56. e7 {[%clk 0:00:09]}  Rg4+ {[%clk 0:00:06]} 57. Kh5 {[%clk 0:00:09]}  Re4 {[%clk 0:00:02]} 58. e8=Q {[%clk 0:00:10]}  Rxe8 {[%clk 0:00:01]} 59. Rxe8 {[%clk 0:00:11]}  Nxf5 {[%clk 0:00:02]} 60. Rb8 {[%clk 0:00:11]}  Nd6 {[%clk 0:00:02]} 61. Rxb6 {[%clk 0:00:11]}  Nc4 {[%clk 0:00:03]} 62. Ra6 {[%clk 0:00:11]}  Nxb2 {[%clk 0:00:03]} 63. b6 {[%clk 0:00:11]}  Nc4 {[%clk 0:00:02]} 64. b7 {[%clk 0:00:12]}  Nd6 {[%clk 0:00:02]} 65. b8=Q {[%clk 0:00:12]}  Nb7 {[%clk 0:00:03]} 66. Qxb7 {[%clk 0:00:12]} 1-0


[Site "https://www.chess.com"]

[Event "Titled Tuesday Blitz January 17 Early 2023"]
[White "Le, Tuan Minh"]
[Black "Fiorito, Joaquin"]
[WhiteFideId "12401153"]
[BlackFideId "180173"]
[WhiteElo "2542"]
[BlackElo "2405"]
[Result "1-0"]
[Round "03"]
[TimeControl "180+2"]
[Date "2023.01.17"]
[WhiteClock "0:00:04"]
[BlackClock "0:00:03"]

1. d4 {[%clk 0:03:00]}  Nf6 {[%clk 0:02:59]} 2. Nf3 {[%clk 0:02:59]}  d5 {[%clk 0:02:59]} 3. Bf4 {[%clk 0:02:59]}  c5 {[%clk 0:02:59]} 4. c3 {[%clk 0:02:57]}  Nc6 {[%clk 0:02:53]} 5. e3 {[%clk 0:02:57]}  Qb6 {[%clk 0:02:53]} 6. Qc2 {[%clk 0:02:56]}  g6 {[%clk 0:02:53]} 7. Nbd2 {[%clk 0:02:55]}  Bg7 {[%clk 0:02:52]} 8. Be2 {[%clk 0:02:53]}  O-O {[%clk 0:02:51]} 9. O-O {[%clk 0:02:52]}  Bf5 {[%clk 0:02:49]} 10. dxc5 {[%clk 0:02:52]}  Qxc5 {[%clk 0:02:47]} 11. Qb3 {[%clk 0:02:53]}  Na5 {[%clk 0:02:35]} 12. Qa4 {[%clk 0:02:40]}  Nc6 {[%clk 0:02:18]} 13. h3 {[%clk 0:02:37]}  a6 {[%clk 0:02:16]} 14. Qb3 {[%clk 0:02:18]}  Na5 {[%clk 0:02:14]} 15. Qa4 {[%clk 0:02:18]}  Nc6 {[%clk 0:02:14]} 16. Nb3 {[%clk 0:02:10]}  Qa7 {[%clk 0:02:12]} 17. Nbd4 {[%clk 0:02:05]}  Bd7 {[%clk 0:02:04]} 18. Qb3 {[%clk 0:02:01]}  Nh5 {[%clk 0:01:57]} 19. Bh2 {[%clk 0:01:59]}  e5 {[%clk 0:01:50]} 20. Nxc6 {[%clk 0:01:57]}  bxc6 {[%clk 0:01:45]} 21. Nxe5 {[%clk 0:01:58]}  Nf6 {[%clk 0:01:40]} 22. Nxd7 {[%clk 0:01:41]}  Nxd7 {[%clk 0:01:40]} 23. Rfd1 {[%clk 0:01:41]}  Nc5 {[%clk 0:01:37]} 24. Qc2 {[%clk 0:01:41]}  Rfe8 {[%clk 0:01:35]} 25. Bf3 {[%clk 0:01:34]}  Ne6 {[%clk 0:01:33]} 26. Rac1 {[%clk 0:01:21]}  Ng5 {[%clk 0:01:32]} 27. Be2 {[%clk 0:01:19]}  Ne4 {[%clk 0:01:33]} 28. Bd3 {[%clk 0:01:17]}  Ng5 {[%clk 0:01:19]} 29. Bg3 {[%clk 0:01:12]}  h5 {[%clk 0:01:13]} 30. Qa4 {[%clk 0:01:04]}  Qd7 {[%clk 0:01:09]} 31. c4 {[%clk 0:00:45]}  Bxb2 {[%clk 0:01:06]} 32. Rc2 {[%clk 0:00:45]}  Be5 {[%clk 0:01:05]} 33. Bxe5 {[%clk 0:00:45]}  Rxe5 {[%clk 0:01:05]} 34. cxd5 {[%clk 0:00:40]}  Rxd5 {[%clk 0:01:04]} 35. Rcd2 {[%clk 0:00:19]}  Rd8 {[%clk 0:01:04]} 36. Qxa6 {[%clk 0:00:17]}  Ne6 {[%clk 0:01:03]} 37. Rc2 {[%clk 0:00:14]}  Rxd3 {[%clk 0:00:58]} 38. Rxd3 {[%clk 0:00:14]}  Qxd3 {[%clk 0:00:59]} 39. Qxc6 {[%clk 0:00:14]}  Qd1+ {[%clk 0:00:57]} 40. Kh2 {[%clk 0:00:15]}  Qe1 {[%clk 0:00:51]} 41. Qc3 {[%clk 0:00:15]}  Qf1 {[%clk 0:00:49]} 42. h4 {[%clk 0:00:12]}  Ng7 {[%clk 0:00:46]} 43. e4 {[%clk 0:00:12]}  Ne6 {[%clk 0:00:44]} 44. f3 {[%clk 0:00:09]}  Nf4 {[%clk 0:00:42]} 45. Qf6 {[%clk 0:00:09]}  Qd3 {[%clk 0:00:35]} 46. Rc7 {[%clk 0:00:03]}  Rd7 {[%clk 0:00:10]} 47. Rc8+ {[%clk 0:00:03]}  Rd8 {[%clk 0:00:03]} 48. Rxd8+ {[%clk 0:00:04]}  Kh7 {[%clk 0:00:03]} 49. Rh8# {[%clk 0:00:04]} 1-0


[Site "https://www.chess.com"]

[Event "Titled Tuesday Blitz January 17 Early 2023"]
[White "Aravindh, Chithambaram VR."]
[Black "Fernandez Garcia, Gumersindo"]
[WhiteFideId "5072786"]
[BlackFideId "24516740"]
[WhiteElo "2633"]
[BlackElo "2160"]
[Result "1-0"]
[Round "03"]
[TimeControl "180+2"]
[Date "2023.01.17"]
[WhiteClock "0:00:43"]
[BlackClock "0:00:23"]

1. c4 {[%clk 0:02:59]}  e5 {[%clk 0:02:57]} 2. d3 {[%clk 0:02:57]}  Nf6 {[%clk 0:02:56]} 3. Nf3 {[%clk 0:02:57]}  d6 {[%clk 0:02:56]} 4. Nc3 {[%clk 0:02:58]}  g6 {[%clk 0:02:56]} 5. g3 {[%clk 0:02:57]}  Bg7 {[%clk 0:02:57]} 6. Bg2 {[%clk 0:02:58]}  O-O {[%clk 0:02:56]} 7. O-O {[%clk 0:02:59]}  c6 {[%clk 0:02:55]} 8. Rb1 {[%clk 0:02:58]}  a5 {[%clk 0:02:54]} 9. a3 {[%clk 0:02:58]}  h6 {[%clk 0:02:42]} 10. b4 {[%clk 0:02:58]}  axb4 {[%clk 0:02:42]} 11. axb4 {[%clk 0:02:59]}  Nbd7 {[%clk 0:02:42]} 12. b5 {[%clk 0:02:57]}  Qc7 {[%clk 0:02:41]} 13. Nd2 {[%clk 0:02:55]}  Nc5 {[%clk 0:02:41]} 14. Nb3 {[%clk 0:02:54]}  Nxb3 {[%clk 0:02:39]} 15. Qxb3 {[%clk 0:02:55]}  Nd7 {[%clk 0:02:36]} 16. Be3 {[%clk 0:02:54]}  f5 {[%clk 0:02:29]} 17. bxc6 {[%clk 0:02:51]}  bxc6 {[%clk 0:02:28]} 18. Nb5 {[%clk 0:02:33]}  Qb8 {[%clk 0:02:20]} 19. Bxc6 {[%clk 0:02:32]}  Ra6 {[%clk 0:02:18]} 20. Bd5+ {[%clk 0:01:45]}  Kh7 {[%clk 0:02:18]} 21. Qc2 {[%clk 0:01:42]}  Nb6 {[%clk 0:01:59]} 22. Bg2 {[%clk 0:01:39]}  f4 {[%clk 0:01:57]} 23. Bd2 {[%clk 0:01:39]}  Bf5 {[%clk 0:01:53]} 24. Bb4 {[%clk 0:01:29]}  Rf6 {[%clk 0:01:41]} 25. Nxd6 {[%clk 0:01:13]}  Rxd6 {[%clk 0:01:38]} 26. Bxd6 {[%clk 0:01:13]}  Qxd6 {[%clk 0:01:35]} 27. c5 {[%clk 0:01:13]}  Qc7 {[%clk 0:01:31]} 28. cxb6 {[%clk 0:01:09]}  Qxc2 {[%clk 0:01:22]} 29. b7 {[%clk 0:01:09]}  Qxe2 {[%clk 0:00:45]} 30. b8=Q {[%clk 0:01:08]}  f3 {[%clk 0:00:45]} 31. Rfe1 {[%clk 0:00:59]}  Qc2 {[%clk 0:00:34]} 32. Bxf3 {[%clk 0:00:59]}  Ra2 {[%clk 0:00:34]} 33. Re2 {[%clk 0:00:50]}  Qa4 {[%clk 0:00:23]} 34. Bd5 {[%clk 0:00:43]} 1-0


[Site "https://www.chess.com"]

[Event "Titled Tuesday Blitz January 17 Early 2023"]
[White "UnknownMagician"]
[Black "Zhigalko, Sergei"]
[BlackFideId "13502956"]
[WhiteElo "2637"]
[BlackElo "2572"]
[Result "1-0"]
[Round "03"]
[TimeControl "180+2"]
[Date "2023.01.17"]
[WhiteClock "0:00:48"]
[BlackClock "0:00:02"]

1. c4 {[%clk 0:02:58]}  e5 {[%clk 0:02:59]} 2. Nc3 {[%clk 0:02:58]}  Nf6 {[%clk 0:03:00]} 3. g3 {[%clk 0:02:58]}  c6 {[%clk 0:02:59]} 4. d4 {[%clk 0:02:57]}  exd4 {[%clk 0:03:00]} 5. Qxd4 {[%clk 0:02:58]}  Na6 {[%clk 0:03:00]} 6. Bg2 {[%clk 0:02:56]}  Bc5 {[%clk 0:03:01]} 7. Qd1 {[%clk 0:02:55]}  O-O {[%clk 0:03:01]} 8. Nf3 {[%clk 0:02:54]}  Re8 {[%clk 0:03:01]} 9. O-O {[%clk 0:02:54]}  Bf8 {[%clk 0:03:01]} 10. b3 {[%clk 0:02:47]}  Nc5 {[%clk 0:03:01]} 11. Bb2 {[%clk 0:02:47]}  a5 {[%clk 0:03:01]} 12. Qc2 {[%clk 0:02:45]}  h6 {[%clk 0:02:56]} 13. Rad1 {[%clk 0:02:44]}  Qb6 {[%clk 0:02:52]} 14. Nd4 {[%clk 0:02:29]}  d6 {[%clk 0:02:47]} 15. Nf5 {[%clk 0:02:25]}  Bxf5 {[%clk 0:02:31]} 16. Qxf5 {[%clk 0:02:26]}  a4 {[%clk 0:02:27]} 17. Rb1 {[%clk 0:02:04]}  axb3 {[%clk 0:02:24]} 18. axb3 {[%clk 0:02:05]}  Qxb3 {[%clk 0:02:18]} 19. Nd5 {[%clk 0:02:03]}  cxd5 {[%clk 0:02:01]} 20. Bxf6 {[%clk 0:02:02]}  Qa4 {[%clk 0:01:22]} 21. Bb2 {[%clk 0:01:59]}  dxc4 {[%clk 0:01:12]} 22. Bd5 {[%clk 0:01:59]}  Qd7 {[%clk 0:01:10]} 23. Qf3 {[%clk 0:01:46]}  Ra4 {[%clk 0:00:29]} 24. Bd4 {[%clk 0:01:40]}  Nb3 {[%clk 0:00:27]} 25. Bc3 {[%clk 0:01:39]}  Re7 {[%clk 0:00:20]} 26. Rfd1 {[%clk 0:01:30]}  Qc7 {[%clk 0:00:17]} 27. h4 {[%clk 0:01:25]}  b5 {[%clk 0:00:17]} 28. g4 {[%clk 0:01:22]}  Ra2 {[%clk 0:00:17]} 29. g5 {[%clk 0:01:20]}  Rexe2 {[%clk 0:00:11]} 30. Rf1 {[%clk 0:01:13]}  Qd7 {[%clk 0:00:02]} 31. gxh6 {[%clk 0:01:09]}  Kh7 {[%clk 0:00:02]} 32. Bxf7 {[%clk 0:00:57]}  g6 {[%clk 0:00:02]} 33. h5 {[%clk 0:00:56]}  Bxh6 {[%clk 0:00:02]} 34. hxg6# {[%clk 0:00:48]} 1-0


[Site "https://www.chess.com"]